bitfinex/quotes_SOLUSD_20240813
["timestamp","ask_amount","ask_price","bid_price","bid_amount"]
[1723530246892,32.0,145.04,144.94,6.589]
[1723530247106,32.0,145.04,144.99,17.2416]
[1723530247421,32.0,145.06,145.02,6.8955]
[1723530248017,32.0,145.06,145.01,17.2394]
[1723530248216,38.8938,145.06,145.02,0.12549]
[1723530248435,16.4143,145.07,145.0,6.8965]
[1723530248436,32.0,145.04,145.0,6.8965]
[1723530248725,33.65626005,145.04,145.0,6.8965]
[1723530248928,32.0,145.04,145.01,6.896]
[1723530249298,32.0,145.04,145.0,6.8964]
[1723530249722,32.0,145.04,145.01,0.12549]
[1723530250015,32.0,145.04,145.01,7.02149]
[1723530251407,32.0,145.04,145.01,0.12549]
[1723530251722,33.65626005,145.04,145.01,0.12549]
[1723530251916,32.0,145.04,145.01,0.12549]
[1723530252115,32.0,145.04,145.01,7.02149]
[1723530252314,32.0,145.04,145.01,0.12549]
[1723530252516,32.0,145.04,145.01,7.02149]
[1723530253803,32.0,145.06,145.02,6.8955]
[1723530254123,32.0,145.06,145.02,17.2382]
[1723530254523,32.0,145.04,145.01,0.12549]
[1723530254894,32.0,145.06,145.0,45.25098]
[1723530255304,32.0,145.06,145.02,6.8955]
[1723530255501,38.8938,145.06,145.01,24.26099]
[1723530255800,38.8938,145.06,145.02,6.8955]
[1723530256002,32.0,145.04,145.0,0.12549]
[1723530256439,32.0,145.04,145.0,6.8965]
[1723530256627,32.0,145.04,145.01,0.12549]
[1723530256924,38.8946,145.04,144.99,7.14788]
[1723530257216,32.0,145.04,145.0,6.8964]
[1723530257706,32.0,145.04,145.01,0.12549]
[1723530257909,32.0,145.04,145.01,7.02149]
[1723530258102,32.0,145.04,145.01,0.12549]
[1723530259225,32.0,145.04,145.0,24.1368]
[1723530259226,38.8947,145.04,145.0,17.2404]
[1723530259413,32.0,145.04,144.97,17.2444]
[1723530259599,32.0,145.04,144.98,0.25098]
[1723530260914,38.8947,145.04,144.99,6.8969]
[1723530261629,32.0,145.04,145.0,6.8964]
[1723530261803,32.0,145.02,144.98,0.12549]
[1723530262009,32.0,145.0,144.94,17.248]
[1723530262212,32.0,144.98,144.95,6.8988]
[1723530262410,33.65626005,144.98,144.94,24.1473]
[1723530262727,33.65626005,144.98,144.92,6.9002]
[1723530262728,32.0,144.96,144.92,6.9002]
[1723530262929,33.65626005,144.96,144.91,17.2516]
[1723530263219,1.65626005,144.95,144.91,17.2516]
[1723530263428,32.0,144.96,144.91,17.2516]
[1723530263597,32.0,144.98,144.93,17.2489]
[1723530264109,32.0,145.0,144.96,6.898]
[1723530265401,38.8965,145.0,144.95,24.27069]
[1723530265733,32.0,145.0,144.96,0.12549]
[1723530265896,32.0,144.98,144.89,6.0807]
[1723530266097,32.0,144.96,144.9,45.37647]
[1723530266345,1.65626005,144.95,144.92,6.9002]
[1723530266537,32.0,144.96,144.93,0.12549]
[1723530266717,33.65626005,144.96,144.93,0.12549]
[1723530267022,32.0,144.96,144.93,0.12549]
[1723530267410,8.55536005,144.95,144.9,6.9008]
[1723530267611,32.0,144.94,144.9,6.9008]
[1723530269204,32.0,144.94,144.91,6.9007]
[1723530269701,32.0,144.94,144.9,6.9012]
[1723530269910,1.65626005,144.93,144.9,6.9012]
[1723530270126,1.65626005,144.93,144.89,7.02719]
[1723530270320,1.65626005,144.92,144.88,24.28239]
[1723530270843,33.65626005,144.92,144.88,24.28239]
[1723530271022,33.65626005,144.92,144.81,6.1322]
[1723530271023,40.55666005,144.92,144.86,6.9028]
[1723530271328,40.55666005,144.92,144.85,17.2591]
[1723530271329,38.9013,144.9,144.85,6.9036]
[1723530271538,32.0,144.9,144.81,6.1322]
[1723530271716,32.0,144.92,144.88,6.9022]
[1723530272326,1.65626005,144.91,144.87,6.9026]
[1723530272743,32.0,144.92,144.87,6.9026]
[1723530272943,32.0,144.92,144.88,6.9022]
[1723530273319,32.0,144.92,144.87,6.9026]
[1723530274523,32.0,144.92,144.88,6.9021]
[1723530276659,32.0,144.92,144.87,6.9026]
[1723530278053,38.9003,144.92,144.87,6.9026]
[1723530278370,32.0,144.89,144.79,24.4561148]
[1723530278651,32.0,144.86,144.81,17.2628]
[1723530278853,32.0,144.88,144.76,7.19226032]
[1723530279021,32.0,144.88,144.85,6.9036]
[1723530279222,38.9022,144.88,144.84,17.2603]
[1723530279542,32.0,144.86,144.84,17.2603]
[1723530280027,32.0,144.88,144.85,6.9036]
[1723530281322,32.0,144.88,144.84,24.1644]
[1723530281828,1.65626005,144.87,144.84,17.2603]
[1723530282027,32.0,144.86,144.83,6.9045]
[1723530282225,6.9025,144.88,144.83,6.9045]
[1723530282532,6.9029,144.87,144.82,6.905]
[1723530282732,32.0,144.86,144.82,6.905]
[1723530282936,32.0,144.86,144.83,6.9046]
[1723530283254,32.0,144.84,144.81,17.2639]
[1723530284837,32.0,144.84,144.81,24.1693]
[1723530285043,32.0,144.86,144.82,6.9051]
[1723530285350,38.9032,144.86,144.81,24.1694]
[1723530286865,38.9032,144.86,144.82,0.12549]
[1723530286866,32.0,144.86,144.82,0.12549]
[1723530287044,32.0,144.88,144.85,6.9036]
[1723530287254,32.0,144.88,144.83,17.2604]
[1723530287446,32.0,144.88,144.84,6.904]
[1723530288662,32.0,144.88,144.85,6.9036]
[1723530289877,32.0,144.88,144.86,6.9031]
[1723530290045,32.0,144.88,144.84,0.12549]
[1723530290369,32.0,144.88,144.85,6.9035]
[1723530290663,32.0,144.92,144.85,17.2581]
[1723530290877,32.0,144.92,144.86,0.25098]
[1723530291069,32.0,144.92,144.88,6.9022]
[1723530291378,6.9028,144.87,144.82,17.2624]
[1723530291554,6.6399,144.93,144.83,0.25098]
[1723530291555,32.0,144.88,144.83,0.25098]
[1723530291748,38.9023,144.88,144.83,7.15508]
[1723530291956,32.0,144.88,144.83,0.37647]
[1723530292148,32.0,144.88,144.83,45.37647]
[1723530292478,32.0,144.88,144.84,17.38489]
[1723530292650,32.0,144.88,144.86,6.9031]
[1723530292855,32.0,144.88,144.84,17.2594]
[1723530293061,32.0,144.88,144.85,0.12549]
[1723530293368,32.0,144.88,144.85,7.02909]
[1723530293567,32.0,144.88,144.84,24.1635]
[1723530294077,32.0,144.88,144.85,6.9036]
[1723530294369,32.0,144.88,144.84,24.1635]
[1723530294565,32.0,144.88,144.85,6.9034]
[1723530294942,32.0,144.88,144.84,24.1635]
[1723530295292,47.581,144.88,144.84,24.1635]
[1723530295458,32.0,144.86,144.83,0.12549]
[1723530295781,32.0,144.84,144.81,17.2636]
[1723530296276,32.0,144.84,144.81,24.1691]
[1723530296485,32.0,144.84,144.81,17.2636]
[1723530296786,32.0,144.84,144.8,6.9059]
[1723530297144,32.0,144.82,144.79,6.9065]
[1723530297573,32.0,144.82,144.8,6.906]
[1723530297950,32.0,144.84,144.81,17.2638]
[1723530298775,32.0,144.86,144.82,7.03019]
[1723530299380,32.0,144.84,144.81,17.2638]
[1723530299553,32.0,144.84,144.82,6.9049]
[1723530300367,32.0,144.86,144.83,0.12549]
[1723530300757,32.0,144.86,144.84,6.9041]
[1723530300951,32.0,144.86,144.83,7.03009]
[1723530301271,32.0,144.86,144.82,6.905]
[1723530301678,32.0,144.86,144.83,6.9046]
[1723530302253,32.0,144.86,144.84,6.9041]
[1723530302764,32.0,144.86,144.83,6.9045]
[1723530303276,32.0,144.86,144.82,0.12549]
[1723530303466,38.9033,144.86,144.81,24.169]
[1723530303652,32.0,144.84,144.81,24.169]
[1723530303851,32.0,144.84,144.82,6.905]
[1723530304074,32.0,144.86,144.82,6.905]
[1723530304270,32.0,144.86,144.83,6.9046]
[1723530304580,32.0,144.86,144.82,6.905]
[1723530305275,32.0,144.86,144.83,6.9046]
[1723530305483,32.0,144.86,144.84,6.9041]
[1723530305779,21.6574,144.93,144.83,0.12549]
[1723530305988,32.0,144.92,144.85,17.2585]
[1723530306194,32.0,144.92,144.86,0.12549]
[1723530306673,32.0,144.92,144.86,1.50593438]
[1723530306891,32.0,144.92,144.87,17.2559]
[1723530307053,32.0,144.92,144.9,6.901]
[1723530307374,15.0007,144.93,144.9,6.901]
[1723530307762,15.0007,144.93,144.88,6.9018]
[1723530308092,32.0,144.92,144.88,6.9018]
[1723530308451,32.0,144.92,144.87,17.2559]
[1723530308652,32.0,144.92,144.88,0.12549]
[1723530309345,32.0,144.94,144.91,6.9004]
[1723530309588,32.0,144.94,144.89,17.2535]
[1723530309885,32.0,144.94,144.92,6.9003]
[1723530310374,32.0,144.94,144.91,6.9007]
[1723530310983,32.0,144.96,144.92,6.9002]
[1723530311479,30.1281,144.97,144.91,17.2512]
[1723530311480,48.5734,144.97,144.91,17.2512]
[1723530311777,48.5734,144.97,144.92,0.25098]
[1723530312279,1.65626005,144.96,144.92,0.12549]
[1723530312458,48.5734,144.97,144.91,17.2512]
[1723530312648,32.0,144.95,144.91,17.2512]
[1723530312969,32.0,144.93,144.91,17.2512]
[1723530313361,32.0,144.93,144.91,24.1518]
[1723530313566,32.0,144.95,144.92,6.9003]
[1723530315451,32.0,144.95,144.91,17.37669]
[1723530315783,32.0,144.95,144.93,6.8997]
[1723530316547,32.0,144.95,144.94,6.8994]
[1723530316768,48.5734,144.97,144.94,6.8994]
[1723530317662,32.0,144.97,144.95,6.8988]
[1723530317865,32.0,144.99,144.95,6.8988]
[1723530319077,32.0,144.97,144.95,6.8988]
[1723530319257,32.0,144.97,144.94,6.8993]
[1723530322500,32.0,144.97,144.93,17.2487]
[1723530322501,32.0,144.97,144.95,6.8989]
[1723530322785,32.0,144.97,144.86,54.3375]
[1723530322786,6.8989,144.95,144.89,17.2535]
[1723530323006,32.0,144.92,144.89,24.1552]
[1723530324160,32.0,144.92,144.9,6.9012]
[1723530324658,32.0,144.94,144.92,6.9001]
[1723530325061,32.0,144.94,144.91,6.9007]
[1723530325288,32.0,144.94,144.89,17.2535]
[1723530325494,1.65626005,144.93,144.89,24.1552]
[1723530326061,33.65626005,144.92,144.89,24.1552]
[1723530326398,32.0,144.92,144.91,6.9008]
[1723530326692,33.65626005,144.94,144.9,6.9012]
[1723530326989,32.0,144.92,144.89,24.1552]
[1723530327567,32.0,144.92,144.89,17.2535]
[1723530327772,32.0,144.92,144.91,6.9008]
[1723530327991,32.0,144.94,144.89,24.1548]
[1723530328389,1.65626005,144.93,144.89,24.1548]
[1723530328575,32.0,144.94,144.89,24.1548]
[1723530328887,1.65626005,144.93,144.89,24.1548]
[1723530329095,1.65626005,144.92,144.89,24.1548]
[1723530329475,32.0,144.94,144.91,6.9008]
[1723530329679,32.0,144.94,144.9,6.9012]
[1723530329894,1.65626005,144.93,144.9,6.9012]
[1723530330095,1.65626005,144.92,144.89,24.1552]
[1723530331191,1.65626005,144.91,144.89,24.1552]
[1723530331393,33.65626005,144.92,144.89,24.1552]
[1723530331698,32.0,144.92,144.9,6.9011]
[1723530332694,32.0,144.92,144.89,17.2535]
[1723530333084,32.0,144.94,144.92,6.9002]
[1723530334373,32.0,144.96,144.94,6.899]
[1723530334975,16.6575,144.99,144.94,17.2485]
[1723530335606,16.6575,144.99,144.96,6.898]
[1723530335808,32.0,145.0,144.96,6.898]
[1723530336102,32.0,145.0,144.94,17.2485]
[1723530336273,32.0,144.98,144.94,17.2485]
[1723530336601,32.0,144.98,144.94,24.1478]
[1723530336808,15.5827,145.02,144.91,17.252]
[1723530336809,32.0,144.96,144.91,17.252]
[1723530336973,32.0,144.96,144.92,6.8999]
[1723530337172,38.8984,144.96,144.91,17.252]
[1723530337392,38.8984,144.96,144.91,24.1527]
[1723530337703,32.0,144.96,144.92,6.9003]
[1723530338199,32.0,144.94,144.86,16.2365]
[1723530338496,32.0,144.94,144.85,6.1434]
[1723530338497,32.0,144.9,144.85,6.1434]
[1723530338702,32.0,144.9,144.87,6.9027]
[1723530338867,32.0,144.9,144.88,6.9021]
[1723530339064,32.0,144.9,144.87,6.9026]
[1723530339270,1.65626005,144.89,144.87,6.9026]
[1723530339469,32.0,144.9,144.87,6.9026]
[1723530339681,32.0,144.9,144.86,17.2572]
[1723530340194,32.0,144.92,144.88,17.2546]
[1723530340591,32.0,144.92,144.91,6.9008]
[1723530340876,32.0,144.92,144.89,6.9017]
[1723530341310,32.0,144.92,144.88,24.1568]
[1723530341772,1.65626005,144.91,144.88,24.1568]
[1723530342495,32.0,144.92,144.88,24.1568]
[1723530342694,32.0,144.92,144.89,6.9017]
[1723530343105,32.0,144.92,144.91,6.9008]
[1723530343472,32.0,144.92,144.9,6.9013]
[1723530343672,32.0,144.92,144.89,6.9017]
[1723530345002,1.65626005,144.91,144.88,24.1567]
[1723530345374,1.65626005,144.91,144.88,17.2546]
[1723530345576,32.0,144.9,144.88,17.2546]
[1723530346507,32.0,144.9,144.88,24.1567]
[1723530346686,32.0,144.9,144.88,17.2546]
[1723530347475,32.0,144.9,144.88,24.1567]
[1723530347769,32.0,144.92,144.88,24.1567]
[1723530347968,32.0,144.92,144.89,6.9017]
[1723530348453,32.0,144.92,144.88,17.2546]
[1723530348708,32.0,144.94,144.91,17.252]
[1723530349022,32.0,144.98,144.95,6.8989]
[1723530350202,32.0,144.98,144.93,17.2488]
[1723530350414,32.0,144.96,144.93,17.2488]
[1723530350778,33.65626005,144.96,144.93,17.2488]
[1723530350986,1.65626005,144.95,144.93,17.2488]
[1723530351411,32.0,144.96,144.93,17.2488]
[1723530351981,32.0,144.96,144.93,24.1486]
[1723530352621,32.0,144.96,144.93,17.2488]
[1723530352811,32.0,144.98,144.95,6.8989]
[1723530353213,32.0,144.98,144.96,6.8984]
[1723530353438,32.0,144.98,144.95,6.8988]
[1723530354621,33.65626005,144.98,144.95,6.8988]
[1723530355016,32.0,144.96,144.93,17.2488]
[1723530355329,16.5521,144.99,144.91,6.9004]
[1723530355330,32.0,144.94,144.91,6.9004]
[1723530355503,32.0,144.94,144.9,24.154]
[1723530355708,32.0,144.94,144.91,6.9007]
[1723530356095,32.0,144.94,144.92,6.9003]
[1723530356323,32.0,144.94,144.93,6.8998]
[1723530356527,32.0,144.94,144.9,17.2529]
[1723530356528,32.0,144.94,144.92,6.9002]
[1723530357195,32.0,144.94,144.93,6.8998]
[1723530357620,32.0,144.94,144.92,6.9003]
[1723530358201,32.0,144.94,144.91,6.9007]
[1723530358720,32.0,144.94,144.92,6.9001]
[1723530359427,32.0,144.96,144.94,6.899]
[1723530359739,38.8988,144.96,144.9,17.2532]
[1723530360040,32.0,144.93,144.9,17.2532]
[1723530360616,38.9,144.93,144.88,6.9018]
[1723530360929,32.0,144.91,144.88,6.9018]
[1723530361711,32.0,144.91,144.89,6.9017]
[1723530362345,32.0,144.91,144.88,6.9021]
[1723530362823,32.0,144.91,144.87,24.1591]
[1723530363510,32.0,144.91,144.88,6.9021]
[1723530363731,32.0,144.93,144.91,6.9007]
[1723530363942,32.0,144.95,144.92,6.9003]
[1723530364443,8.55566005,144.94,144.89,6.9017]
[1723530364653,6.8994,144.94,144.9,6.9012]
[1723530364815,8.55566005,144.94,144.9,6.9012]
[1723530365140,8.55566005,144.94,144.89,6.9017]
[1723530365339,38.8999,144.93,144.89,6.9017]
[1723530365539,32.0,144.93,144.9,6.9012]
[1723530365749,32.0,144.93,144.9,17.2526]
[1723530365926,38.899,144.95,144.9,24.1534]
[1723530366419,32.0,144.95,144.91,6.9006]
[1723530367108,32.0,144.95,144.92,6.9001]
[1723530367316,32.0,144.97,144.93,17.2493]
[1723530367711,32.0,144.97,144.94,6.8994]
[1723530367945,32.0,144.97,144.93,24.1491]
[1723530368517,32.0,144.97,144.94,6.8993]
[1723530369551,32.0,144.97,144.95,6.8988]
[1723530369750,48.5521,144.99,144.95,6.8988]
[1723530369916,48.5521,144.99,144.95,6.8985]
[1723530370544,38.8961,145.01,144.95,17.2467]
[1723530370846,38.8961,145.01,144.97,6.8979]
[1723530371055,38.8961,145.01,144.94,0.12549]
[1723530371056,32.0,144.99,144.94,0.12549]
[1723530371221,38.8984,144.97,144.92,24.1506]
[1723530371423,1.65626005,144.96,144.92,24.1506]
[1723530371734,32.0,144.95,144.92,24.1506]
[1723530372243,32.0,144.95,144.93,6.8997]
[1723530372545,32.0,144.95,144.92,24.1507]
[1723530372728,32.0,144.95,144.92,17.2504]
[1723530375438,32.0,144.95,144.92,24.1503]
[1723530375853,32.0,144.97,144.92,17.2504]
[1723530376167,32.0,144.99,144.95,6.8987]
[1723530377559,32.0,144.99,144.96,6.8984]
[1723530377756,32.0,144.99,144.95,6.8988]
[1723530378130,32.0,144.99,144.93,6.8995]
[1723530378484,32.0,144.97,144.94,6.8992]
[1723530379436,32.0,144.99,144.95,6.8988]
[1723530379841,32.0,144.99,144.95,24.1448]
[1723530380373,6.8966,145.0,144.92,17.37609]
[1723530380374,32.0,144.97,144.92,17.37609]
[1723530380733,32.0,144.97,144.92,17.2506]
[1723530380930,38.8992,144.95,144.9,13.2991]
[1723530381131,38.8992,144.95,144.9,6.3982]
[1723530381660,32.0,144.95,144.9,6.3982]
[1723530381832,32.0,144.95,144.91,6.9004]
[1723530382164,16.72326005,145.02,144.9,23.6506]
[1723530382165,38.898,144.97,144.9,23.6506]
[1723530382359,38.898,144.97,144.91,6.9005]
[1723530382939,1.65626005,144.96,144.92,0.12549]
[1723530383143,1.65626005,144.95,144.92,0.12549]
[1723530383536,32.0,144.97,144.92,7.02569]
[1723530383537,38.898,144.97,144.92,7.02569]
[1723530383745,32.0,144.97,144.92,0.12549]
[1723530383961,32.0,144.97,144.92,17.2502]
[1723530384149,32.0,144.97,144.94,6.8993]
[1723530384345,32.0,144.97,144.95,0.12549]
[1723530384545,38.8974,144.99,144.95,7.02429]
[1723530384742,1.65626005,144.98,144.95,0.12549]
[1723530384962,38.8974,144.99,144.95,0.12549]
[1723530385146,8.55386005,144.98,144.95,0.12549]
[1723530385475,6.8979,144.97,144.92,17.2502]
[1723530385665,32.0,144.97,144.93,7.02519]
[1723530385981,32.0,144.97,144.93,0.12549]
[1723530386265,38.899,144.95,144.91,7.02609]
[1723530386447,32.0,144.95,144.92,0.12549]
[1723530386648,32.0,144.95,144.91,7.15138]
[1723530386847,32.0,144.95,144.92,6.9003]
[1723530388158,32.0,144.95,144.91,7.15168]
[1723530388549,38.8989,144.95,144.91,0.12549]
[1723530390172,32.0,144.95,144.91,7.02619]
[1723530390586,32.0,144.95,144.92,6.9002]
[1723530391058,32.0,144.95,144.91,0.12549]
[1723530391261,1.65626005,144.94,144.91,0.12549]
[1723530391858,1.65626005,144.94,144.91,7.02629]
[1723530392272,1.65626005,144.94,144.91,0.12549]
[1723530392464,38.8991,144.95,144.89,17.2539]
[1723530392465,32.0,144.93,144.89,6.9017]
[1723530392663,32.0,144.91,144.89,6.9017]
[1723530392973,32.0,144.93,144.89,6.9017]
[1723530393278,32.0,144.93,144.9,6.9012]
[1723530393518,48.3966,144.95,144.91,6.9007]
[1723530393669,55.2955,144.95,144.9,6.9011]
[1723530393857,1.65626005,144.94,144.91,0.12549]
[1723530394481,6.8997,144.94,144.89,24.155]
[1723530394899,6.8999,144.93,144.89,17.2537]
[1723530395063,55.2959,144.95,144.89,24.1551]
[1723530395257,6.8995,144.94,144.89,24.1551]
[1723530395885,6.8995,144.94,144.9,7.02669]
[1723530396592,48.3966,144.95,144.91,6.9008]
[1723530396760,48.3966,144.95,144.92,0.12549]
[1723530397088,56.95176005,144.95,144.92,0.12549]
[1723530397307,32.0,144.95,144.91,6.9004]
[1723530397490,32.0,144.95,144.91,7.02589]
[1723530397692,38.8983,144.97,144.93,6.8998]
[1723530397889,38.8974,144.99,144.94,7.02449]
[1723530398392,6.8975,144.98,144.94,7.02449]
[1723530399284,38.897,144.99,144.94,7.02449]
[1723530399687,15.7213,145.02,144.94,0.12549]
[1723530399913,32.0,145.0,144.95,17.2465]
[1723530400421,32.0,145.02,144.98,6.8974]
[1723530400592,38.8956,145.02,144.98,6.8974]
[1723530400795,32.0,145.02,144.99,0.12549]
[1723530401503,6.8952,145.03,144.99,0.12549]
[1723530401705,38.8952,145.03,144.99,0.12549]
[1723530402419,38.8952,145.03,144.99,7.02249]
[1723530402928,32.0,145.03,144.99,7.02249]
[1723530406005,38.8951,145.03,144.99,7.02249]
[1723530406400,38.8951,145.03,144.99,0.12549]
[1723530406722,38.8951,145.03,144.99,7.02239]
[1723530408098,32.0,145.03,144.99,7.02239]
[1723530408299,32.0,145.03,145.0,6.8965]
[1723530409715,32.0,145.03,145.01,6.896]
[1723530409907,38.8942,145.05,145.01,6.896]
[1723530410093,32.0,145.05,145.01,6.896]
[1723530411735,32.0,145.05,145.02,6.8955]
[1723530412931,12.70446883,145.07,145.03,21.93489]
[1723530413110,6.8931,145.08,145.03,21.93489]
[1723530413311,38.8923,145.09,145.04,7.01999]
[1723530413529,38.8923,145.09,145.05,0.12549]
[1723530415730,32.0,145.09,145.06,6.8936]
[1723530415906,32.0,145.09,145.07,0.12549]
[1723530416227,38.8913,145.11,145.07,7.01859]
[1723530416540,32.0,145.09,145.05,17.2345]
[1723530416839,32.0,145.07,145.04,0.25098]
[1723530416994,40.54956005,145.07,145.03,21.8094]
[1723530417318,32.0,145.05,145.03,28.7044]
[1723530418421,38.8933,145.07,145.03,28.7044]
[1723530419699,32.0,145.07,145.04,6.8944]
[1723530420323,32.0,145.07,145.03,28.7044]
[1723530421829,32.0,145.07,145.04,6.8944]
[1723530422711,32.0,145.07,145.05,6.894]
[1723530423424,32.0,145.07,145.02,17.2384]
[1723530423630,32.0,145.07,145.03,6.8947]
[1723530423833,32.0,145.05,144.99,22.6656]
[1723530424032,32.0,145.03,144.99,29.5622]
[1723530424837,32.0,145.03,145.0,6.8964]
[1723530425331,32.0,145.01,144.95,21.6294]
[1723530425527,32.0,144.99,144.96,6.8983]
[1723530425704,32.0,144.99,144.95,13.2039]
[1723530426121,32.0,144.99,144.96,6.8984]
[1723530426450,33.65626005,144.99,144.96,6.8984]
[1723530426921,33.65626005,144.99,144.95,13.2039]
[1723530427118,1.65626005,144.98,144.93,24.148]
[1723530427329,32.0,144.97,144.93,24.148]
[1723530427529,1.65626005,144.96,144.93,24.148]
[1723530428713,1.65626005,144.96,144.94,0.12549]
[1723530428913,32.0,144.97,144.93,24.148]
[1723530429111,32.0,144.97,144.94,6.8993]
[1723530429309,32.0,144.99,144.95,17.37179]
[1723530429548,32.0,145.01,144.95,17.37179]
[1723530429709,32.0,145.01,144.98,6.8975]
[1723530430050,32.0,145.01,144.97,6.8978]
[1723530430230,1.65626005,145.0,144.96,7.02379]
[1723530430468,16.3292,145.02,144.95,17.37179]
[1723530430469,32.0,144.99,144.95,17.37179]
[1723530430606,32.0,145.01,144.96,0.25098]
[1723530430804,32.0,145.01,144.97,0.12549]
[1723530431637,1.65626005,145.0,144.98,6.8975]
[1723530431935,1.65626005,145.0,144.97,0.12549]
[1723530432106,33.65626005,144.99,144.96,0.12549]
[1723530432300,33.65626005,144.99,144.95,24.1452]
[1723530432301,38.897,144.99,144.95,24.1452]
[1723530432538,32.0,144.97,144.94,0.12549]
[1723530432709,1.65626005,144.96,144.94,0.12549]
[1723530433427,1.65626005,144.96,144.93,6.8997]
[1723530434120,1.65626005,144.96,144.94,6.8993]
[1723530434328,32.0,144.99,144.96,6.8984]
[1723530435521,1.65626005,144.98,144.92,17.2508]
[1723530435736,38.8974,144.99,144.94,6.8993]
[1723530436036,38.8974,144.99,144.95,7.02429]
[1723530436241,32.0,144.99,144.96,6.8984]
[1723530437213,32.0,144.99,144.95,7.02439]
[1723530438241,1.65626005,144.98,144.95,0.12549]
[1723530438449,16.3292,145.02,144.92,0.12549]
[1723530438450,38.898,144.97,144.92,0.12549]
[1723530438623,32.0,144.97,144.92,0.37647]
[1723530438941,16.3292,145.02,144.92,0.37647]
[1723530438942,32.0,144.99,144.95,6.8988]
[1723530439152,32.0,144.99,144.96,0.12549]
[1723530439321,1.65626005,144.98,144.92,0.37647]
[1723530439517,38.8971,144.99,144.94,6.8991]
[1723530439736,1.65626005,144.98,144.95,0.12549]
[1723530439941,32.0,144.97,144.94,17.2478]
[1723530440144,38.898,144.97,144.92,7.02569]
[1723530440351,38.898,144.97,144.93,0.12549]
[1723530440554,38.898,144.97,144.93,7.02519]
[1723530440863,1.65626005,144.96,144.93,0.12549]
[1723530441220,38.898,144.97,144.93,7.02529]
[1723530441480,32.0,144.97,144.93,6.8998]
[1723530441629,38.898,144.97,144.93,6.8998]
[1723530442164,1.65626005,144.96,144.93,6.8998]
[1723530442317,32.0,144.97,144.93,6.8998]
[1723530442938,1.65626005,144.96,144.92,7.02579]
[1723530443148,1.65626005,144.95,144.92,7.02579]
[1723530443351,33.65626005,144.95,144.91,24.1524]
[1723530443531,38.8989,144.95,144.91,17.2517]
[1723530443921,32.0,144.95,144.91,17.2517]
[1723530444226,32.0,144.95,144.93,6.8996]
[1723530444426,15.7097,144.96,144.93,6.8996]
[1723530445084,32.0,144.97,144.92,0.25098]
[1723530445225,32.0,144.99,144.93,0.12549]
[1723530445553,38.897,144.99,144.95,6.8988]
[1723530446133,32.0,144.99,144.95,6.8988]
[1723530446344,1.65626005,144.98,144.96,0.12549]
[1723530446950,32.0,144.99,144.96,7.02379]
[1723530447151,1.65626005,144.98,144.96,0.12549]
[1723530447655,33.65626005,144.99,144.96,0.12549]
[1723530447954,12.81,144.97,144.96,7.02389]